fUST/lending_fUST_20250205
["ID","MTS","AMOUNT","RATE_DAILY","PERIOD"]
[351723074,1738765843706,-258.29710998,0.00015468,2]
[351723075,1738765843716,-436.66818008,0.00015468,2]
[351723077,1738765843726,-500.0,0.00015468,2]
[351723080,1738765843736,-539.06959581,0.00015468,2]
[351723082,1738765843745,-514.86328539,0.00015468,2]
[351723084,1738765843756,-501.39812152,0.00015468,2]
[351723085,1738765843766,-500.0,0.00015468,2]
[351723087,1738765843774,-427.20471527,0.00015468,2]
[351723089,1738765843783,-500.0,0.00015468,2]
[351723091,1738765843792,-500.0,0.00015468,2]
[351723093,1738765843802,-181.46615783,0.00015468,2]
[351723095,1738765843811,-500.0,0.00015468,2]
[351723097,1738765843819,-500.0,0.00015468,2]
[351723099,1738765843828,-500.0,0.00015468,2]
[351723101,1738765843838,-500.0,0.00015468,2]
[351723103,1738765843848,-500.0,0.00015468,2]
[351723105,1738765843857,-515.09877908,0.00015468,2]
[351723107,1738765843866,-557.04,0.00015468,2]
[351723109,1738765843875,-747.83,0.00015468,2]
[351723111,1738765843884,-500.0,0.00015468,2]
[351723113,1738765843894,-500.0,0.00015468,2]
[351723115,1738765843903,-701.87,0.00015468,2]
[351723117,1738765843912,-500.0,0.00015468,2]
[351723119,1738765843921,-500.0,0.00015468,2]
[351723121,1738765843931,-500.0,0.00015468,2]
[351723123,1738765843942,-500.0,0.00015468,2]
[351723125,1738765843951,-500.0,0.00015468,2]
[351723127,1738765843962,-513.03769392,0.00015468,2]
[351723129,1738765843971,-500.0,0.00015468,2]
[351723131,1738765843980,-627.51506266,0.00015468,2]
[351723133,1738765843989,-500.0,0.00015468,2]
[351723135,1738765843999,-1771.95,0.00015468,2]
[351723137,1738765844008,-1801.53,0.00015468,2]
[351723139,1738765844018,-500.0,0.00015468,2]
[351723141,1738765844027,-581.39,0.00015468,2]
[351723143,1738765844036,-626.74415443,0.00015468,2]
[351723145,1738765844045,-342.46415204,0.00015468,2]
[351723147,1738765844054,-959.8,0.00015468,2]
[351723149,1738765844064,-500.0,0.00015468,2]
[351723151,1738765844073,-500.0,0.00015468,2]
[351723153,1738765844082,-500.0,0.00015468,2]
[351723155,1738765844092,-965.91,0.00015468,2]
[351723157,1738765844103,-519.18555177,0.00015468,2]
[351723158,1738765844113,-500.0,0.00015468,2]
[351723160,1738765844122,-1000.0,0.00015468,2]
[351723162,1738765844132,-673.65,0.00015468,2]
[351723164,1738765844142,-500.0,0.00015468,2]
[351723166,1738765844151,-500.0,0.00015468,2]
[351723168,1738765844161,-500.0,0.00015468,2]
[351723170,1738765844171,-500.0,0.00015468,2]
[351723172,1738765844180,-500.0,0.00015468,2]
[351723174,1738765844190,-500.0,0.00015468,2]
[351723176,1738765844199,-500.0,0.00015468,2]
[351723178,1738765844209,-500.0,0.00015468,2]
[351723180,1738765844218,-500.0,0.00015468,2]
[351723182,1738765844227,-500.0,0.00015468,2]
[351723197,1738765844371,-510.44864288,0.00015468,2]
[351723199,1738765844381,-500.0,0.00015468,2]
[351723202,1738765844391,-500.0,0.00015468,2]
[351723203,1738765844401,-500.0,0.00015468,2]
[351723205,1738765844410,-338.33276121,0.00015468,2]
[351723208,1738765844420,-506.44705914,0.00015468,2]
[351723210,1738765844430,-978.29,0.00015468,2]
[351723212,1738765844439,-500.0,0.00015468,2]
[351723213,1738765844448,-423.42630439,0.00015468,2]
[351723215,1738765844458,-500.0,0.00015468,2]
[351723217,1738765844467,-507.88964618,0.00015468,2]
[351723220,1738765844477,-500.0,0.00015468,2]
[351723222,1738765844487,-500.0,0.00015468,2]
[351723223,1738765844497,-500.0,0.00015468,2]
[351723225,1738765844509,-500.0,0.00015468,2]
[351723227,1738765844519,-500.0,0.00015468,2]
[351723230,1738765844528,-500.0,0.00015468,2]
[351723231,1738765844537,-500.0,0.00015468,2]
[351723234,1738765844547,-500.0,0.00015468,2]
[351723236,1738765844558,-500.0,0.00015468,2]
[351723237,1738765844568,-1382.55,0.00015468,2]
[351723239,1738765844578,-500.0,0.00015468,2]
[351723241,1738765844589,-500.0,0.00015468,2]
[351723243,1738765844599,-500.0,0.00015468,2]
[351723245,1738765844609,-1072.35,0.00015468,2]
[351723247,1738765844619,-500.0,0.00015468,2]
[351723249,1738765844630,-500.0,0.00015468,2]
[351723251,1738765844640,-507.95164527,0.00015468,2]
[351723253,1738765844650,-500.0,0.00015468,2]
[351723255,1738765844659,-500.0,0.00015468,2]
[351723257,1738765844669,-502.94517475,0.00015468,2]
[351723259,1738765844679,-500.0,0.00015468,2]
[351723261,1738765844689,-795.11,0.00015468,2]
[351723263,1738765844698,-500.0,0.00015468,2]
[351723265,1738765844708,-302.68106921,0.00015468,2]
[351723268,1738765844717,-211.74345682,0.00015468,2]
[351723270,1738765844727,-503.79388325,0.00015468,2]
[351723272,1738765844737,-500.0,0.00015468,2]
[351723274,1738765844746,-500.0,0.00015468,2]
[351723276,1738765844757,-500.0,0.00015468,2]
[351723277,1738765844767,-500.0,0.00015468,2]
[351723278,1738765844776,-1015.33,0.00015468,2]
[351723279,1738765844786,-500.0,0.00015468,2]
[351723280,1738765844795,-500.0,0.00015468,2]
[351723281,1738765844805,-500.0,0.00015468,2]
[351723282,1738765844816,-597.24,0.00015468,2]
[351723283,1738765844825,-500.0,0.00015468,2]
[351723284,1738765844835,-505.09044525,0.00015468,2]
[351723285,1738765844844,-3728.09,0.00015468,2]
[351723286,1738765844854,-500.0,0.00015468,2]
[351723287,1738765844863,-1233.6,0.00015468,2]
[351723288,1738765844872,-510.55742378,0.00015468,2]
[351723289,1738765844882,-500.0,0.00015468,2]
[351723290,1738765844893,-500.0,0.00015468,2]
[351723291,1738765844903,-163.0,0.00015491,2]
[351723292,1738765844913,-163.0,0.00015491,2]
[351723293,1738765844922,-163.0,0.00015491,2]
[351723294,1738765844932,-163.0,0.00015491,2]
[351723295,1738765844942,-163.0,0.00015491,2]
[351723296,1738765844950,-163.0,0.00015491,2]
[351723297,1738765844960,-163.0,0.00015491,2]
[351723298,1738765844969,-163.0,0.00015491,2]
[351723299,1738765844979,-163.0,0.00015491,2]
[351723300,1738765844988,-163.0,0.00015491,2]
[351723301,1738765844998,-163.0,0.00015491,2]
[351723302,1738765845007,-163.0,0.00015491,2]
[351723303,1738765845017,-163.0,0.00015491,2]
[351723304,1738765845026,-153.0,0.00015491,2]
[351723305,1738765845035,-153.0,0.00015491,2]
[351723306,1738765845044,-153.0,0.00015491,2]
[351723307,1738765845055,-153.0,0.00015491,2]
[351723308,1738765845064,-153.0,0.00015491,2]
[351723309,1738765845073,-153.0,0.00015491,2]
[351723310,1738765845082,-153.0,0.00015491,2]
[351723311,1738765845091,-153.0,0.00015491,2]
[351723312,1738765845101,-163.0,0.00015491,2]
[351723313,1738765845110,-163.0,0.00015491,2]
[351723314,1738765845119,-163.0,0.00015491,2]
[351723315,1738765845129,-163.0,0.00015491,2]
[351723316,1738765845139,-163.0,0.00015491,2]
[351723317,1738765845148,-163.0,0.00015491,2]
[351723318,1738765845158,-163.0,0.00015491,2]
[351723319,1738765845167,-163.0,0.00015491,2]
[351723320,1738765845177,-163.0,0.00015491,2]
[351723321,1738765845187,-163.0,0.00015491,2]
[351723322,1738765845196,-163.0,0.00015491,2]
[351723323,1738765845206,-163.0,0.00015491,2]
[351723324,1738765845215,-163.0,0.00015491,2]
[351723325,1738765845225,-163.0,0.00015491,2]
[351723326,1738765845234,-153.0,0.00015491,2]
[351723327,1738765845244,-153.0,0.00015491,2]
[351723328,1738765845253,-153.0,0.00015491,2]
[351723329,1738765845264,-153.0,0.00015491,2]
[351723330,1738765845274,-153.0,0.00015491,2]
[351723331,1738765845283,-153.0,0.00015491,2]
[351723332,1738765845293,-153.0,0.00015491,2]
[351723333,1738765845302,-153.0,0.00015491,2]
[351723334,1738765845312,-153.0,0.00015491,2]
[351723335,1738765845322,-153.0,0.00015491,2]
[351723336,1738765845332,-153.0,0.00015491,2]
[351723337,1738765845341,-163.0,0.00015491,2]
[351723338,1738765845351,-163.0,0.00015491,2]
[351723339,1738765845361,-163.0,0.00015491,2]
[351723340,1738765845371,-163.0,0.00015491,2]
[351723341,1738765845380,-163.0,0.00015491,2]
[351723342,1738765845389,-163.0,0.00015491,2]
[351723343,1738765845399,-163.0,0.00015491,2]
[351723344,1738765845408,-163.0,0.00015491,2]
[351723345,1738765845418,-163.0,0.00015491,2]
[351723346,1738765845428,-163.0,0.00015491,2]
[351723347,1738765845437,-163.0,0.00015491,2]
[351723348,1738765845447,-163.0,0.00015491,2]
[351723349,1738765845457,-163.0,0.00015491,2]
[351723350,1738765845467,-163.0,0.00015491,2]
[351723351,1738765845476,-153.0,0.00015491,2]
[351723352,1738765845485,-153.0,0.00015491,2]
[351723353,1738765845494,-153.0,0.00015491,2]
[351723354,1738765845504,-153.0,0.00015491,2]
[351723355,1738765845517,-153.0,0.00015491,2]
[351723356,1738765845528,-153.0,0.00015491,2]
[351723357,1738765845537,-153.0,0.00015491,2]
[351723358,1738765845547,-153.0,0.00015491,2]
[351723359,1738765845557,-153.0,0.00015491,2]
[351723360,1738765845566,-153.0,0.00015491,2]
[351723361,1738765845576,-153.0,0.00015491,2]
[351723362,1738765845586,-1286.15103807,0.00015502,2]
[351723363,1738765845596,-1286.15103807,0.00015502,2]
[351723364,1738765845606,-1286.15103807,0.00015502,2]
[351723365,1738765845616,-1286.15103807,0.00015502,2]
[351723366,1738765845625,-1286.15103807,0.00015502,2]
[351723367,1738765845635,-1286.15103807,0.00015502,2]
[351723368,1738765845645,-1286.15103807,0.00015502,2]
[351723369,1738765845654,-1286.15103807,0.00015502,2]
[351723370,1738765845663,-1286.15103807,0.00015502,2]
[351723371,1738765845673,-1286.15103807,0.00015502,2]
[351723372,1738765845683,-1286.15103807,0.00015502,2]
[351723373,1738765845692,-1286.15103807,0.00015502,2]
[351723374,1738765845702,-1286.15103807,0.00015502,2]
[351723375,1738765845712,-1286.15103807,0.00015502,2]
[351723376,1738765845722,-1286.15103807,0.00015502,2]
[351723377,1738765845731,-1286.15103807,0.00015502,2]
[351723378,1738765845740,-1286.15103807,0.00015502,2]
[351723379,1738765845749,-1286.15103807,0.00015502,2]
[351723380,1738765845759,-1286.15103807,0.00015502,2]
[351723381,1738765845768,-1286.15,0.00015502,2]
[351723382,1738765845778,-263.67,0.00015502,2]
[351723383,1738765845787,-1000.0,0.00015586,2]
[351723384,1738765845797,-500.0,0.00015599,2]
[351723385,1738765845807,-926.74,0.00015599,2]
[351723386,1738765845815,-500.0,0.00015599,2]
[351723387,1738765845825,-222.85905389,0.00015599,2]
[351723388,1738765845835,-500.0,0.00015599,2]
[351723389,1738765845844,-840.13,0.000156,2]
[351723390,1738765845854,-500.0,0.000156,2]
[351723391,1738765845863,-870.55,0.000156,2]
[351723392,1738765845872,-10820.7,0.000156,2]
[351723393,1738765845882,-948.89,0.000156,2]
[351723394,1738765845891,-511.74,0.000156,2]
[351723395,1738765845901,-17755.1,0.000156,2]
[351723396,1738765845911,-627.09,0.000156,2]
[351723397,1738765845920,-500.0,0.000156,2]
[351723398,1738765845930,-500.0,0.000156,2]
[351723399,1738765845940,-7386.5,0.000156,2]
[351723400,1738765845950,-8920.75,0.000156,2]
[351723401,1738765845960,-3873.05,0.000156,2]
[351723402,1738765845969,-500.0,0.000156,2]
[351723403,1738765845979,-500.0,0.000156,2]
[351723404,1738765845988,-500.0,0.000156,2]
[351723405,1738765845998,-2980.54,0.000156,2]
[351723406,1738765846010,-1302.9,0.000156,2]
[351723407,1738765846020,-625.69,0.000156,2]
[351723409,1738765846030,-500.0,0.000156,2]
[351723410,1738765846040,-1238.88,0.000156,2]
[351723411,1738765846050,-500.0,0.000156,2]
[351723412,1738765846060,-1015.14,0.000156,2]
[351723413,1738765846070,-6065.83,0.000156,2]
[351723414,1738765846080,-1512.79,0.000156,2]
[351723415,1738765846090,-3228.08,0.000156,2]
[351723416,1738765846101,-2477.84,0.000156,2]
[351723417,1738765846111,-7930.55,0.000156,2]
[351723419,1738765846120,-3088.01,0.000156,2]
[351723420,1738765846131,-12931.27,0.000156,2]
[351723421,1738765846141,-632.73,0.000156,2]
[351723422,1738765846150,-1253.97,0.000156,2]
[351723423,1738765846160,-500.0,0.000156,2]
[351723424,1738765846171,-626.28,0.000156,2]
[351723426,1738765846180,-3748.11,0.000156,2]
[351723428,1738765846191,-812.79,0.000156,2]
[351723429,1738765846200,-500.0,0.000156,2]
[351723430,1738765846210,-3076.87,0.000156,2]
[351723431,1738765846220,-500.0,0.000156,2]
[351723432,1738765846230,-560.83,0.00015601,2]
[351723433,1738765846240,-622.44,0.00015601,2]
[351723434,1738765846250,-1228.21,0.00015601,2]
[351723435,1738765846262,-500.0,0.00015601,2]
[351723436,1738765846272,-500.0,0.00015601,2]
[351723437,1738765846282,-500.0,0.00015601,2]
[351723438,1738765846292,-568.13,0.00015601,2]
[351723439,1738765846303,-2056.59,0.00015601,2]
[351723440,1738765846312,-529.67,0.00015601,2]
[351723441,1738765846322,-1543.41,0.00015601,2]
[351723442,1738765846332,-993.99,0.00015601,2]
[351723443,1738765846342,-1446.67,0.00015601,2]
[351723444,1738765846352,-500.0,0.00015601,2]
[351723445,1738765846361,-2452.9,0.00015601,2]
[351723446,1738765846371,-1206.56,0.00015601,2]
[351723447,1738765846380,-500.0,0.00015601,2]
[351723448,1738765846390,-636.02,0.00015601,2]
[351723449,1738765846401,-500.0,0.00015601,2]
[351723450,1738765846410,-500.0,0.00015601,2]
[351723451,1738765846420,-1645.86,0.00015601,2]
[351723452,1738765846429,-1744.86,0.00015601,2]
[351723453,1738765846439,-1576.87,0.00015601,2]
[351723454,1738765846449,-500.0,0.00015601,2]
[351723456,1738765846459,-500.0,0.00015601,2]
[351723458,1738765846468,-511.58,0.00015601,2]
[351723460,1738765846478,-1137.86,0.00015601,2]
[351723462,1738765846487,-2540.11,0.00015601,2]
[351723464,1738765846496,-500.0,0.00015601,2]
[351723466,1738765846506,-1514.53,0.00015601,2]
[351723468,1738765846519,-500.0,0.00015601,2]
[351723470,1738765846528,-500.0,0.00015601,2]
[351723472,1738765846538,-1062.71,0.00015601,2]
[351723474,1738765846548,-2026.2,0.00015601,2]
[351723476,1738765846557,-500.0,0.00015601,2]
[351723478,1738765846567,-500.0,0.00015601,2]
[351723480,1738765846577,-500.0,0.00015601,2]
[351723482,1738765846586,-500.0,0.00015601,2]
[351723484,1738765846596,-4529.89,0.00015601,2]
[351723486,1738765846606,-500.0,0.00015601,2]
[351723488,1738765846615,-500.0,0.00015601,2]
[351723490,1738765846625,-3077.26,0.00015601,2]
[351723492,1738765846634,-789.65,0.00015601,2]
[351723494,1738765846644,-500.0,0.00015601,2]
[351723496,1738765846654,-3558.22,0.00015601,2]
[351723498,1738765846663,-500.0,0.00015601,2]
[351723500,1738765846673,-500.0,0.00015601,2]
[351723503,1738765846683,-1440.9,0.00015601,2]
[351723505,1738765846692,-1177.82,0.00015601,2]
[351723506,1738765846702,-500.0,0.00015601,2]
[351723509,1738765846711,-500.0,0.00015601,2]
[351723511,1738765846721,-4117.99,0.00015601,2]
[351723513,1738765846731,-500.0,0.00015601,2]
[351723515,1738765846740,-1394.99,0.00015601,2]
[351723517,1738765846750,-495.71475009,0.00015601,2]
[351723519,1738765846762,-500.0,0.00015601,2]
[351723521,1738765846772,-500.0,0.00015601,2]
[351723523,1738765846782,-500.0,0.00015601,2]
[351723525,1738765846792,-500.0,0.00015601,2]
[351723527,1738765846802,-1127.59,0.00015601,2]
[351723529,1738765846812,-151.0,0.00015601,2]
[351723531,1738765846822,-656.19,0.00015601,2]
[351723533,1738765846831,-982.98,0.00015601,2]
[351723535,1738765846841,-500.0,0.00015601,2]
[351723537,1738765846850,-1432.26,0.00015601,2]
[351723539,1738765846859,-653.94,0.00015601,2]
[351723541,1738765846868,-719.45,0.00015601,2]
[351723543,1738765846878,-500.0,0.00015601,2]
[351723545,1738765846887,-178.00689569,0.00015601,2]
[351723547,1738765846896,-8275.04,0.00015601,2]
[351723549,1738765846905,-500.0,0.00015601,2]
[351723551,1738765846915,-1514.7,0.00015601,2]
[351723553,1738765846923,-500.0,0.00015601,2]
[351723555,1738765846933,-1585.42,0.00015601,2]
[351723557,1738765846942,-689.82,0.00015601,2]
[351723559,1738765846951,-500.0,0.00015601,2]
[351723561,1738765846960,-3069.18,0.00015601,2]
[351723563,1738765846969,-657.43,0.00015601,2]
[351723565,1738765846979,-500.0,0.00015601,2]
[351723567,1738765846988,-500.0,0.00015601,2]
[351723569,1738765846997,-500.0,0.00015601,2]
[351723571,1738765847007,-1666.54,0.00015601,2]
[351723573,1738765847017,-1750.73,0.00015601,2]
[351723575,1738765847027,-500.0,0.00015601,2]
[351723577,1738765847036,-500.0,0.00015601,2]
[351723579,1738765847046,-1009.29,0.00015601,2]
[351723581,1738765847055,-500.0,0.00015601,2]
[351723583,1738765847064,-500.0,0.00015601,2]
[351723598,1738765847201,-500.0,0.00015601,2]
[351723600,1738765847211,-514.94,0.00015601,2]
[351723602,1738765847221,-500.0,0.00015601,2]
[351723604,1738765847231,-500.0,0.00015601,2]
[351723606,1738765847240,-8083.43,0.00015601,2]
[351723608,1738765847250,-594.64,0.00015601,2]
[351723610,1738765847259,-500.0,0.00015601,2]
[351723612,1738765847268,-326.52367571,0.00015601,2]
[351723614,1738765847278,-500.0,0.00015601,2]
[351723616,1738765847287,-1174.57,0.00015601,2]
[351723618,1738765847296,-500.0,0.00015601,2]
[351723620,1738765847306,-584.83,0.00015601,2]
[351723622,1738765847315,-151.0,0.00015601,2]
[351723624,1738765847324,-500.0,0.00015601,2]
[351723626,1738765847334,-500.0,0.00015601,2]
[351723628,1738765847343,-500.0,0.00015601,2]
[351723630,1738765847353,-505.72471782,0.00015601,2]
[351723632,1738765847362,-500.0,0.00015601,2]
[351723634,1738765847372,-2732.02,0.00015601,2]
[351723636,1738765847382,-500.0,0.00015601,2]
[351723638,1738765847391,-500.0,0.00015601,2]
[351723640,1738765847401,-41618.06,0.00015601,2]
[351723642,1738765847410,-500.0,0.00015601,2]
[351723644,1738765847420,-124655.58,0.00015601,2]
[351723646,1738765847430,-151.0,0.00015601,2]
[351723648,1738765847440,-500.0,0.00015601,2]
[351723651,1738765847450,-500.0,0.00015602,2]
[351723653,1738765847460,-500.0,0.00015602,2]
[351723655,1738765847469,-500.0,0.00015602,2]
[351723657,1738765847479,-500.0,0.00015602,2]
[351723659,1738765847489,-500.0,0.00015602,2]
[351723661,1738765847499,-500.0,0.00015602,2]
[351723663,1738765847513,-500.0,0.00015602,2]
[351723665,1738765847523,-500.0,0.00015602,2]
[351723667,1738765847533,-500.0,0.00015602,2]
[351723669,1738765847543,-551.6,0.00015602,2]
[351723671,1738765847552,-500.0,0.00015602,2]
[351723673,1738765847561,-500.0,0.00015602,2]
[351723675,1738765847571,-500.0,0.00015602,2]
[351723677,1738765847580,-616.66,0.00015602,2]
[351723679,1738765847589,-500.0,0.00015602,2]
[351723681,1738765847599,-500.0,0.00015602,2]
[351723683,1738765847608,-500.0,0.00015602,2]
[351723685,1738765847618,-500.0,0.00015602,2]
[351723687,1738765847627,-500.0,0.00015602,2]
[351723689,1738765847637,-500.0,0.00015602,2]
[351723691,1738765847647,-500.0,0.00015602,2]
[351723693,1738765847657,-500.0,0.00015602,2]
[351723695,1738765847667,-500.0,0.00015602,2]
[351723697,1738765847677,-534.98802774,0.00015602,2]
[351723699,1738765847686,-500.0,0.00015602,2]
[351723701,1738765847696,-500.0,0.00015602,2]
[351723702,1738765847706,-500.0,0.00015602,2]
[351723705,1738765847715,-529.30405561,0.00015602,2]
[351723707,1738765847725,-519.22,0.00015602,2]
[351723708,1738765847734,-500.0,0.00015602,2]
[351723710,1738765847744,-500.0,0.00015602,2]
[351723712,1738765847754,-500.0,0.00015602,2]
[351723715,1738765847766,-1825.73,0.00015602,2]
[351723717,1738765847777,-500.0,0.00015602,2]
[351723719,1738765847787,-742.34,0.00015602,2]
[351723721,1738765847797,-500.0,0.00015602,2]
[351723723,1738765847807,-500.0,0.00015602,2]
[351723725,1738765847818,-500.0,0.00015602,2]
[351723726,1738765847828,-500.0,0.00015602,2]
[351723728,1738765847838,-500.0,0.00015602,2]
[351723730,1738765847847,-500.0,0.00015602,2]
[351723732,1738765847857,-532.49,0.00015602,2]
[351723734,1738765847867,-500.0,0.00015602,2]
[351723736,1738765847877,-500.0,0.00015602,2]
[351723738,1738765847887,-884.65,0.00015602,2]
[351723740,1738765847897,-500.0,0.00015602,2]
[351723742,1738765847907,-500.0,0.00015602,2]
[351723744,1738765847916,-500.0,0.00015602,2]
[351723746,1738765847926,-500.0,0.00015602,2]
[351723748,1738765847935,-645.8,0.00015602,2]
[351723750,1738765847945,-1175.08,0.00015602,2]
[351723752,1738765847955,-500.0,0.00015602,2]
[351723754,1738765847965,-731.7,0.00015602,2]
[351723756,1738765847975,-549.23,0.00015602,2]
[351723758,1738765847985,-517.78911673,0.00015602,2]
[351723760,1738765847995,-500.0,0.00015602,2]
[351723762,1738765848005,-789.68,0.00015602,2]
[351723764,1738765848017,-500.0,0.00015602,2]
[351723767,1738765848028,-168.87784166,0.00015602,2]
[351723768,1738765848038,-500.0,0.00015602,2]
[351723770,1738765848049,-500.0,0.00015602,2]
[351723773,1738765848059,-500.0,0.00015602,2]
[351723775,1738765848069,-500.0,0.00015602,2]
[351723776,1738765848079,-783.62,0.00015602,2]
[351723778,1738765848090,-500.0,0.00015602,2]
[351723780,1738765848101,-500.0,0.00015602,2]
[351723782,1738765848111,-500.0,0.00015602,2]
[351723784,1738765848122,-500.0,0.00015602,2]
[351723786,1738765848132,-500.0,0.00015602,2]
[351723788,1738765848142,-567.03014329,0.00015602,2]
[351723790,1738765848152,-500.0,0.00015602,2]
[351723792,1738765848162,-500.0,0.00015602,2]
[351723794,1738765848173,-635.45962378,0.00015602,2]
[351723797,1738765848184,-500.0,0.00015602,2]
[351723798,1738765848194,-500.0,0.00015602,2]
[351723801,1738765848206,-668.91,0.00015602,2]
[351723803,1738765848216,-500.0,0.00015602,2]
[351723805,1738765848226,-627.23,0.00015602,2]
[351723807,1738765848236,-500.0,0.00015602,2]
[351723809,1738765848246,-500.0,0.00015602,2]
[351723811,1738765848255,-500.0,0.00015602,2]
[351723813,1738765848267,-500.0,0.00015602,2]
[351723814,1738765848278,-500.0,0.00015602,2]
[351723816,1738765848289,-500.0,0.00015602,2]
[351723819,1738765848301,-500.0,0.00015602,2]
[351723821,1738765848312,-500.0,0.00015602,2]
[351723823,1738765848323,-500.0,0.00015602,2]
[351723825,1738765848332,-1274.54,0.00015602,2]
[351723826,1738765848342,-580.61,0.00015602,2]
[351723827,1738765848351,-500.0,0.00015602,2]
[351723828,1738765848361,-500.0,0.00015602,2]
[351723829,1738765848371,-500.0,0.00015602,2]
[351723830,1738765848381,-500.0,0.00015602,2]
[351723831,1738765848391,-500.0,0.00015602,2]
[351723832,1738765848400,-500.0,0.00015602,2]
[351723833,1738765848410,-500.0,0.00015602,2]
[351723834,1738765848421,-508.12583092,0.00015602,2]
[351723835,1738765848430,-500.0,0.00015602,2]
[351723836,1738765848440,-788.11,0.00015602,2]
[351723837,1738765848450,-500.0,0.00015602,2]
[351723838,1738765848459,-455.73567478,0.00015602,2]
[351723839,1738765848470,-519.40967737,0.00015602,2]
[351723840,1738765848480,-500.0,0.00015602,2]
[351723841,1738765848490,-728.17,0.00015602,2]
[351723842,1738765848500,-500.0,0.00015602,2]
[351723843,1738765848512,-500.0,0.00015602,2]
[351723844,1738765848522,-500.0,0.00015602,2]
[351723845,1738765848531,-500.0,0.00015602,2]
[351723846,1738765848541,-500.0,0.00015602,2]
[351723847,1738765848551,-500.0,0.00015602,2]
[351723848,1738765848560,-500.0,0.00015602,2]
[351723849,1738765848570,-403.97731672,0.00015602,2]
[351723851,1738765848580,-500.0,0.00015602,2]
[351723853,1738765848591,-500.0,0.00015602,2]
[351723855,1738765848602,-500.0,0.00015602,2]
[351723857,1738765848612,-500.0,0.00015602,2]
[351723859,1738765848621,-500.0,0.00015602,2]
[351723861,1738765848630,-500.0,0.00015602,2]
[351723863,1738765848640,-526.69125425,0.00015602,2]
[351723865,1738765848650,-1146.46,0.00015602,2]
[351723867,1738765848658,-500.0,0.00015602,2]
[351723869,1738765848668,-500.0,0.00015602,2]
[351723871,1738765848677,-500.0,0.00015602,2]
[351723873,1738765848686,-500.0,0.00015602,2]
[351723875,1738765848695,-500.0,0.00015602,2]
[351723877,1738765848705,-500.0,0.00015602,2]
[351723879,1738765848715,-500.0,0.00015602,2]
[351723881,1738765848724,-500.0,0.00015602,2]
[351723883,1738765848734,-207.976094,0.00015602,2]
[351723885,1738765848744,-500.0,0.00015602,2]
[351723887,1738765848754,-500.0,0.00015602,2]
[351723889,1738765848765,-835.03,0.00015602,2]
[351723891,1738765848776,-207.976094,0.00015602,2]
[351723893,1738765848785,-5435.49,0.00015602,2]
[351723895,1738765848795,-151.0,0.00015602,2]
[351723897,1738765848804,-1241.2,0.00015602,2]
[351723899,1738765848813,-500.0,0.00015602,2]
[351723901,1738765848824,-500.0,0.00015602,2]
[351723903,1738765848834,-671.43,0.00015602,2]
[351723905,1738765848844,-728.89,0.00015602,2]